fUSD/lending_fUSD_20240421
["ID","MTS","AMOUNT","RATE_DAILY","PERIOD"]
[323154848,1713733843233,-203.1674593,0.00012997,2]
[323154849,1713733843242,-453.61585099,0.00012998,2]
[323154850,1713733843252,-2041.00924167,0.00012998,2]
[323154851,1713733843262,-7338.41932417,0.00012998,2]
[323154852,1713733843271,-1361.13424716,0.00012999,2]
[323154854,1713733843281,-810214.22827042,0.00013,2]
[323154855,1713733843302,-6128.01698902,0.00013,2]
[323154856,1713733843396,-9533.94310162,0.00013,2]
[323154857,1713733843408,-3317.8275122,0.00013,2]
[323154858,1713733843444,-1709.14347173,0.00013,2]
[323154874,1713733845741,-1645.27046053,0.00013,2]
[323154876,1713733845754,-325.338378,0.00013,2]
[323154882,1713733845794,-386.34527195,0.00013,2]
[323154891,1713733845877,-338.26159632,0.00013,2]
[323154907,1713733846215,-1687.36407221,0.00013,2]
[323154908,1713733846228,-356.62990415,0.00013,2]
[323154909,1713733846282,-36893.02821,0.00013,2]
[323154910,1713733846294,-61249.755,0.00013,2]
[323154911,1713733846315,-86198.10278025,0.00013,2]
[323154912,1713733862415,833.33691221,0.00012348,2]
[323154913,1713733942822,675.94,0.0001049,2]
[323154914,1713733994660,156.48,0.00012395,2]
[323154917,1713734054804,1455.56,0.00012057,2]
[323154918,1713734146671,16336.88,0.00012038,2]
[323154919,1713734220401,4605.93084639,0.00012432,2]
[323154920,1713734221445,162.84,0.00012075,2]
[323154921,1713734231411,-161.47811392,0.00012518,2]
[323154922,1713734231433,-1060.52885847,0.00012519,2]
[323154923,1713734231455,-300.0,0.00012523,2]
[323154924,1713734231478,-150.0,0.00012523,2]
[323154925,1713734231502,-156.48,0.00012525,2]
[323154926,1713734231524,-68024.51302761,0.00012531,2]
[323154927,1713734248312,9166.57401699,0.00012038,2]
[323154928,1713734250793,-387.02650494,0.0001253,2]
[323154929,1713734250817,-160.82862248,0.0001253,2]
[323154930,1713734250841,-539.1629436,0.0001253,2]
[323154931,1713734250864,-8912.98192898,0.00012531,2]
[323154932,1713734258026,4398.87095208,0.00012038,2]
[323154933,1713734274948,150.0,0.00012001,2]
[323154934,1713734274972,100.0,0.00012001,2]
[323154935,1713734283059,1000.0,0.00012001,2]
[323154936,1713734293730,150.0,0.00011976,2]
[323154937,1713734293753,745.808244,0.00011976,2]
[323154938,1713734315428,150.0,0.0001194,2]
[323154939,1713734315452,7.45,0.0001194,2]
[323154940,1713734315639,150.0,0.00011947,2]
[323154941,1713734315661,7.45,0.00011947,2]
[323154942,1713734315848,157.45,0.00011954,2]
[323154943,1713734316095,157.45,0.00011962,2]
[323154944,1713734316289,157.45,0.00011969,2]
[323154945,1713734316609,157.45,0.00011977,2]
[323154946,1713734316778,157.45,0.00011984,2]
[323154947,1713734316973,157.45,0.00011992,2]
[323154948,1713734317188,157.45,0.00011999,2]
[323154949,1713734343866,150.0,0.00011888,2]
[323154950,1713734358071,150.0,0.00011999,2]
[323154951,1713734358097,150.0,0.00011999,2]
[323154952,1713734358120,150.0,0.00011999,2]
[323154953,1713734358141,150.0,0.00011999,2]
[323154954,1713734358162,150.0,0.00011999,2]
[323154955,1713734358184,150.0,0.00011999,2]
[323154956,1713734358205,150.0,0.00011999,2]
[323154957,1713734358228,150.0,0.00011999,2]
[323154958,1713734358251,150.0,0.00011999,2]
[323154959,1713734358274,150.0,0.00011999,2]
[323154960,1713734358295,150.0,0.00011999,2]
[323154961,1713734358316,150.0,0.00011999,2]
[323154962,1713734358337,150.0,0.00011999,2]
[323154963,1713734358357,150.0,0.00011999,2]
[323154964,1713734358378,150.0,0.00011999,2]
[323154965,1713734358400,13261.2297448,0.00011999,2]
[323154966,1713734420741,181.05,0.00011802,2]
[323154967,1713734544058,4.05,0.00011826,2]
[323154968,1713734544079,1313.3,0.00011826,2]
[323154969,1713734546066,156.62,0.00011914,2]
[323154970,1713734546344,156.62,0.00012003,2]
[323154971,1713734632387,9673.28,0.00011673,2]
[323154972,1713734670080,740.2,9.723e-05,2]
[323154973,1713734670333,740.2,0.00011987,2]
[323154974,1713734684404,1726.41,0.00011641,2]
[323154975,1713734726419,166.49,0.00011649,2]
[323154976,1713734744012,723.95140888,0.00011247,2]
[323154977,1713734781425,200.0,0.00011592,2]
[323154978,1713734790009,155.0,0.00011247,2]
[323154979,1713734819631,250.0,0.00011592,2]
[323154980,1713734858454,5365.4942,0.0001199,2]
[323154981,1713734922558,228.81,0.00011596,2]
[323154982,1713734933816,1750.0,0.00012,2]
[323154983,1713734935711,1305.8538,0.00011988,2]
[323154986,1713735017005,156.62,0.00011606,2]
[323154987,1713735017232,156.62,0.00011727,2]
[323154988,1713735017626,156.62,0.00011848,2]
[323154989,1713735017860,156.62,0.00011969,2]
[323154994,1713735032372,-1994.39190651,0.00012083,2]
[323154995,1713735032383,-219.25573886,0.00012084,2]
[323154996,1713735032393,-219.25573886,0.00012084,2]
[323154998,1713735032404,-1507.02137576,0.00012087,2]
[323155000,1713735032414,-313.36259302,0.00012088,2]
[323155002,1713735032433,-169.14579115,0.00012088,2]
[323155004,1713735032447,-156.62,0.0001209,2]
[323155006,1713735032458,-156.62,0.00012211,2]
[323155007,1713735032468,-158.34888371,0.00012316,2]
[323155008,1713735032478,-2364.26532513,0.00012329,2]
[323155009,1713735032491,-6450.0,0.00012329,2]
[323155010,1713735032506,-404.0000001,0.00012329,2]
[323155011,1713735032520,-326.34,0.00012329,2]
[323155012,1713735032535,-420.0,0.00012329,2]
[323155013,1713735032551,-1848.61575999,0.00012329,2]
[323155014,1713735032566,-261.36402809,0.00012329,2]
[323155015,1713735032601,-304.2368044,0.00012329,2]
[323155016,1713735032615,-956.33828,0.00012329,2]
[323155017,1713735032633,-3746.38281553,0.00012329,2]
[323155018,1713735032648,-6481.68123966,0.00012329,2]
[323155019,1713735032662,-1997.4276,0.00012329,2]
[323155020,1713735032677,-1042.16772,0.00012329,2]
[323155021,1713735032690,-1309.51,0.00012329,2]
[323155022,1713735032707,-1486.7837916,0.00012329,2]
[323155023,1713735032724,-647.77,0.00012329,2]
[323155024,1713735032737,-19501.6014014,0.00012329,2]
[323155025,1713735032765,-595.14624862,0.00012329,2]
[323155026,1713735032779,-251.82359112,0.00012329,2]
[323155027,1713735032883,-26120.51701452,0.00012329,2]
[323155028,1713735032897,-2952.77,0.00012329,2]
[323155029,1713735032910,-2214.06189973,0.00012329,2]
[323155030,1713735032922,-768.59427376,0.00012329,2]
[323155031,1713735032935,-304055.11793811,0.00012329,2]
[323155032,1713735032947,-74805.49996,0.00012329,2]
[323155033,1713735032960,-30679.999987,0.00012329,2]
[323155034,1713735032971,-5848.38428761,0.00012329,2]
[323155035,1713735032988,-3019.45826115,0.00012329,2]
[323155036,1713735033001,-574.25050338,0.00012329,2]
[323155037,1713735033013,-5107.4353723,0.00012329,2]
[323155038,1713735033025,-919.32000046,0.00012329,2]
[323155039,1713735033037,-630.85,0.00012329,2]
[323155040,1713735033048,-1125.00000012,0.00012329,2]
[323155041,1713735033059,-12770.70185429,0.00012329,2]
[323155042,1713735033071,-299.68,0.00012329,2]
[323155043,1713735033083,-2121.37763752,0.00012329,2]
[323155044,1713735033095,-1194.85289494,0.00012329,2]
[323155045,1713735033108,-3971.0701764,0.00012329,2]
[323155046,1713735033120,-320.8465035,0.00012329,2]
[323155047,1713735033133,-1450.28399832,0.00012329,2]
[323155048,1713735033146,-258.128903,0.00012329,2]
[323155049,1713735033157,-266.27999998,0.00012329,2]
[323155050,1713735033169,-752.4458828,0.00012329,2]
[323155051,1713735033182,-920.0,0.00012329,2]
[323155052,1713735033195,-12567.70304506,0.00012329,2]
[323155053,1713735033205,-557.83075585,0.0001233,2]
[323155089,1713735037937,-204.99865099,0.0001232,2]
[323155091,1713735037947,-336.11082397,0.0001233,2]
[323155093,1713735037959,-2538.78599999,0.0001233,2]
[323155095,1713735037971,-3361.55652095,0.0001233,2]
[323155096,1713735037982,-1283.2,0.0001233,2]
[323155097,1713735037994,-366.83172432,0.0001233,2]
[323155098,1713735038035,-577.69928284,0.0001233,2]
[323155120,1713735038257,-449537.98116579,0.0001233,2]
[323155122,1713735038268,-1304.30137999,0.0001233,2]
[323155124,1713735038279,-29850.72174718,0.0001233,2]
[323155126,1713735038290,-8157.13396545,0.0001233,2]
[323155129,1713735038302,-86119.96526969,0.0001233,2]
[323155132,1713735038313,-1562.91945283,0.0001233,2]
[323155136,1713735038324,-3487.91076185,0.0001233,2]
[323155139,1713735038335,-4464.75015773,0.0001233,2]
[323155142,1713735038346,-13713.3498527,0.0001233,2]
[323155145,1713735038356,-313.18496432,0.0001233,2]
[323155150,1713735038367,-1990.1749146,0.0001233,2]
[323155154,1713735038378,-3043.4186129,0.0001233,2]
[323155164,1713735038405,-6423.2968965,0.0001233,2]
[323155168,1713735038416,-1681.81594384,0.0001233,2]
[323155173,1713735038427,-2114.79778006,0.0001233,2]
[323155177,1713735038437,-6339.3,0.0001233,2]
[323155181,1713735038448,-629.43835646,0.0001233,2]
[323155189,1713735038476,-15751.21024325,0.0001233,2]
[323155194,1713735038500,-19740.41190065,0.0001233,2]
[323155255,1713735040049,-15000.0,0.0001233,2]
[323155256,1713735040061,-5349.03311171,0.0001233,2]
[323155257,1713735040071,-150.0,0.0001233,2]
[323155258,1713735040080,-3973.81860988,0.00012332,2]
[323155259,1713735040134,-591.65,0.00012332,2]
[323155260,1713735040149,-474.635,0.00012332,2]
[323155261,1713735040160,-3717.13639012,0.00012332,2]
[323155262,1713735040169,-158.34888371,0.00012399,2]
[323155263,1713735040178,-218.22894187,0.000124,2]
[323155264,1713735040188,-165.46593543,0.000124,2]
[323155265,1713735040198,-262.16181551,0.00012497,2]
[323155266,1713735040207,-155.0660185,0.00012497,2]
[323155267,1713735040216,-2400.0,0.00012498,2]
[323155268,1713735040226,-13311.09075898,0.000125,3]
[323155275,1713735040496,-3191282.28710535,0.000125,3]
[323155276,1713735040507,-1960.0,0.000125,3]
[323155277,1713735040536,-5177.67036089,0.000125,3]
[323155278,1713735040547,-1365.19272938,0.000125,3]
[323155279,1713735040559,-10000.0,0.000125,3]
[323155305,1713735043013,-332.00402996,0.000124,2]
[323155308,1713735043024,-91.77917056,0.000124,2]
[323155310,1713735043034,-1993.68299351,0.00012499,2]
[323155312,1713735043042,-1091.62933593,0.000125,3]
[323155314,1713735043053,-2013.4999997,0.000125,3]
[323155318,1713735043093,-678.25000005,0.000125,3]
[323155319,1713735043104,-6731.63656,0.000125,3]
[323155320,1713735043115,-624.42694281,0.000125,3]
[323155321,1713735043148,-6762.50845146,0.000125,3]
[323155322,1713735043159,-651.25992,0.000125,3]
[323155323,1713735043203,-8900.56235922,0.000125,3]
[323155324,1713735043262,-635.88,0.000125,3]
[323155325,1713735043274,-1407.11585462,0.000125,3]
[323155335,1713735046098,-1206.11,0.00012042,2]
[323155336,1713735046108,-155.0,0.00012399,2]
[323155337,1713735046117,-6293.32144232,0.000125,3]
[323155338,1713735046129,-36590.05920807,0.000125,3]
[323155339,1713735046144,-10626.67261,0.000125,3]
[323155340,1713735046155,-15244.77312,0.000125,3]
[323155341,1713735046208,-396.87088712,0.000125,3]
[323155344,1713735146370,150.0,0.00010095,2]
[323155345,1713735146392,296.56779485,0.00010095,2]
[323155346,1713735146414,377.04220515,0.00010095,2]
[323155347,1713735151521,23890.0,0.00011972,2]
[323155348,1713735249839,166.05,0.00011912,2]
[323155352,1713735287486,250.0,0.00011912,2]
[323155353,1713735325160,840.0,0.00011912,2]
[323155354,1713735335682,159.41,9.53e-05,2]
[323155355,1713735336054,159.41,0.00010721,2]
[323155356,1713735336411,159.41,0.00011912,2]
[323155357,1713735571414,803.74,0.00011869,2]
[323155358,1713735573056,352.0,0.00011869,2]
[323155359,1713735638775,2796.65461008,0.00011872,2]
[323155360,1713735642424,23900.0,0.0001185,2]
[323155361,1713735675136,300.0,0.000149,5]
[323155362,1713735746070,163.24,0.00011639,2]
[323155363,1713735759569,876.88,9.739e-05,2]
[323155364,1713735759801,876.88,0.00012003,2]
[323155365,1713735764230,500.0,0.00011634,2]
[323155366,1713735820177,159.41,9.225e-05,2]
[323155367,1713735851256,328.0,0.00011569,2]
[323155368,1713735863052,150.0,0.00011569,2]
[323155369,1713735869558,667.0,0.00011569,3]
[323155370,1713735886961,859978.01851917,0.0001088,2]
[323155371,1713735886987,2000000.0,0.0001088,2]
[323155372,1713735887015,810037.81724513,0.0001088,2]
[323155373,1713735930843,150.0,0.00011553,2]
[323155374,1713735930863,150.0,0.00011553,2]
[323155375,1713735930884,150.0,0.00011553,2]
[323155376,1713735930904,150.0,0.00011553,2]
[323155377,1713735930925,150.0,0.00011553,2]
[323155378,1713735930945,36.71,0.00011553,2]
[323155379,1713735962959,3330.44,0.00011533,2]
[323155380,1713735982656,250.0,0.00011533,2]
[323155381,1713736037127,159.81,0.0001164,2]
[323155382,1713736040786,255.95890899,0.0002,30]
[323155383,1713736056357,300.0,0.000149,5]
[323155389,1713736123294,1956.06,0.00011446,2]
[323155411,1713736232122,-786.99155585,0.00012038,2]
[323155412,1713736232131,-305.25449563,0.00012039,2]
[323155413,1713736232141,-155.0,0.0001204,2]
[323155414,1713736232150,-534.08718913,0.00012044,2]
[323155415,1713736232160,-150.0,0.00012053,2]
[323155416,1713736232169,-4968.66675939,0.00012054,2]
[323155417,1713736232181,-256.4326,0.00012054,2]
[323155418,1713736232193,-5339.73462227,0.00012054,2]
[323155419,1713736232202,-8727.38745257,0.00012055,2]
[323155420,1713736232214,-1741.82254743,0.00012055,2]
[323155421,1713736232224,-159.81,0.00012246,2]
[323155422,1713736232233,-330.24547727,0.00012257,2]
[323155423,1713736232242,-150.0,0.00012274,2]
[323155424,1713736232252,-300.0,0.000123,4]
[323155425,1713736232261,-499.99,0.000123,2]
[323155426,1713736232271,-155.36852506,0.00012346,2]
[323155427,1713736232280,-207.72132305,0.00012355,2]
[323155428,1713736232289,-56051.58981287,0.00012356,2]
[323155429,1713736232299,-535129.85606632,0.00012356,2]
[323155430,1713736232310,-10980.22893327,0.00012356,2]
[323155431,1713736232320,-15990.77799406,0.00012357,2]
[323155432,1713736232330,-2212.86489593,0.00012358,2]
[323155433,1713736232339,-697.39473,0.0001239,2]
[323155434,1713736232348,-18652.35,0.00012399,2]
[323155435,1713736232358,-26042.5768,0.00012399,2]
[323155436,1713736232367,-525.61,0.00012399,2]
[323155437,1713736232376,-600.0,0.000124,4]
[323155438,1713736232386,-330.24547726,0.00012418,2]
[323155439,1713736232409,-697.39473,0.0001243,2]
[323155441,1713736232420,-697.39473,0.0001247,2]
[323155443,1713736232429,-230.15233842,0.00012497,2]
[323155445,1713736232438,-336.39806704,0.00012497,2]
[323155446,1713736232448,-632.01160907,0.00012497,2]
[323155447,1713736232457,-407.61661465,0.00012497,2]
[323155448,1713736232470,-155.0,0.00012497,2]
[323155449,1713736232480,-3377.82594417,0.00012497,2]
[323155450,1713736232490,-155.0,0.00012497,2]
[323155451,1713736232499,-2023.05761895,0.00012497,2]
[323155452,1713736232509,-155.36235237,0.00012497,2]
[323155453,1713736232761,-483.30142374,0.00012497,2]
[323155454,1713736232772,-934.89986472,0.00012497,2]
[323155455,1713736232781,-410.46719331,0.00012497,2]
[323155456,1713736232790,-207.08240678,0.00012497,2]
[323155457,1713736232800,-697.39473,0.00012499,2]
[323155458,1713736232809,-697.39473,0.00012499,2]
[323155459,1713736232818,-75721.42019162,0.000125,3]
[323155460,1713736232827,-150.99,0.000125,2]
[323155461,1713736232836,-418.94,0.000125,2]
[323155462,1713736232845,-900.0,0.000125,4]
[323155463,1713736232855,-697.39473,0.0001251,2]
[323155464,1713736232864,-300.0,0.00012518,2]
[323155465,1713736232873,-5544.53670484,0.0001253,2]
[323155466,1713736232883,-330.24547726,0.00012579,2]
[323155467,1713736232892,-1200.0,0.000126,4]
[323155468,1713736232902,-159.36,0.00012668,2]
[323155469,1713736232911,-4222.10327594,0.000127,2]
[323155470,1713736232921,-1600.0,0.000127,4]
[323155471,1713736232930,-330.24547726,0.00012739,2]
[323155472,1713736232940,-684.0,0.000128,2]
[323155473,1713736232949,-75459.40595934,0.000128,2]
[323155474,1713736232975,-16864.60796289,0.000128,2]
[323155475,1713736232986,-363.6,0.000128,2]
[323155476,1713736233009,-339.7200004,0.000128,2]
[323155477,1713736233020,-2839.72603321,0.000128,2]
[323155478,1713736233034,-1400.0,0.000128,2]
[323155479,1713736233045,-3227.02999997,0.000128,2]
[323155480,1713736233056,-1255.57432,0.000128,2]
[323155481,1713736233067,-1390.44469596,0.000128,2]
[323155482,1713736233111,-648.77496,0.000128,2]
[323155483,1713736233123,-325.09234905,0.000128,2]
[323155484,1713736233135,-4386.35969042,0.000128,2]
[323155485,1713736233146,-1030.80826547,0.000128,2]
[323155486,1713736233158,-5000.0,0.000128,2]
[323155487,1713736233170,-3971.07024,0.000128,2]
[323155499,1713736238185,-2009.55480909,0.000128,2]
[323155500,1713736238234,-471.96517856,0.000128,2]
[323155501,1713736238246,-311.75649,0.000128,2]
[323155502,1713736238257,-7604.92697361,0.000128,2]
[323155503,1713736238390,-164055.65842128,0.000128,2]
[323155504,1713736238400,-5000.0,0.000128,2]
[323155505,1713736238410,-300.0,0.000128,4]
[323155506,1713736238419,-172.68675683,0.00012869,2]
[323155507,1713736238432,-1000.0,0.00012896,2]
[323155508,1713736238441,-500.0,0.00012896,2]
[323155509,1713736238451,-10000.0,0.000129,2]
[323155510,1713736238462,-300.0,0.000129,4]
[323155511,1713736238477,-196.34640924,0.000129,2]
[323155512,1713736238487,-196.34640923,0.000129,2]
[323155513,1713736238498,-196.34640923,0.000129,2]
[323155514,1713736238508,-330.24547726,0.000129,2]
[323155515,1713736238518,-251.21747312,0.000129,2]
[323155516,1713736238528,-10000.0,0.00012964,2]
[323155517,1713736238539,-17427.613311,0.00012988,2]
[323155518,1713736238549,-3248.5482798,0.00012988,2]
[323155519,1713736238559,-1323.4196513,0.00012988,2]
[323155520,1713736238569,-155.36852506,0.0001299,2]
[323155521,1713736238578,-20481.0795259,0.00012991,2]
[323155522,1713736238588,-3817.7215936,0.00012991,2]
[323155523,1713736238597,-1555.2940406,0.00012991,2]
[323155524,1713736238606,-155.66999337,0.00012997,2]
[323155525,1713736238616,-155.62974777,0.00012997,2]
[323155526,1713736238625,-155.0,0.00012997,2]
[323155527,1713736238635,-3757.73056516,0.00012998,2]
[323155529,1713736238644,-325.54755976,0.00012998,2]
[323155531,1713736238654,-7338.41932417,0.00012998,2]
[323155532,1713736238663,-236.6335643,0.00012999,2]
[323155533,1713736238673,-400065.79973203,0.00013,2]
[323155534,1713736238684,-699.5904175,0.00013,2]
[323155537,1713736238696,-221208.55802723,0.00013,2]
[323155540,1713736238708,-1434763.62419093,0.00013,2]
[323155543,1713736238719,-66788.10179443,0.00013,2]
[323155547,1713736238731,-640.39070572,0.00013,2]
[323155552,1713736238751,-1088560.74035431,0.00013,2]
[323155553,1713736238762,-1408.71903102,0.00013,2]
[323155554,1713736238780,-163374.91506936,0.00013,2]
[323155555,1713736238791,-630.4,0.00013,2]
[323155556,1713736238802,-906.05354169,0.00013,2]
[323155557,1713736238814,-392.8545,0.00013,2]
[323155585,1713736240192,-549.80271798,0.00012964,2]
[323155588,1713736240204,-3110.7679,0.00012964,2]
[323155590,1713736240215,-1049.3952,0.00012964,2]
[323155594,1713736240249,-1121.2213578,0.00012964,2]
[323155600,1713736240292,789.19,0.00010376,2]
[323155618,1713736240468,-2996.90931234,0.00012964,2]
[323155620,1713736240478,-569.14517764,0.00013,2]
[323155632,1713736240620,-789.19,0.0001264,2]
[323155634,1713736240630,-5920.77368001,0.00013,2]
[323155761,1713736243178,-155.0,0.00012963,2]
[323155763,1713736243187,-225165.09103349,0.00013,2]
[323155764,1713736243249,-1986.8165823,0.00013,2]
[323155765,1713736243353,-356.33632353,0.00013,2]
[323155766,1713736243365,-6713.32558,0.00013,2]
[323155767,1713736243566,-1297.59,0.00013,2]
[323155842,1713736313320,159.41,9.764e-05,2]
[323155851,1713736549187,157.042106,0.00022,30]
[323155852,1713736550254,157.042106,0.00022,30]
[323155853,1713736551176,157.042106,0.00022,30]
[323155854,1713736551945,157.042106,0.00022,30]
[323155855,1713736552701,157.042106,0.00022,30]
[323155856,1713736602658,151.0,0.00023948,120]
[323155857,1713736685613,3247.63,0.00011859,2]
[323155890,1713736723308,786.7,9.941e-05,2]
[323155896,1713736726716,1664.17,0.00011811,2]
[323155919,1713736745212,18286.15,0.00011811,2]
[323155922,1713736747711,1750.0,0.00012,2]
[323155932,1713736754796,166.49,0.00011811,2]
[323155941,1713736791550,1648.16,0.00011811,2]
[323155942,1713736813155,23900.0,0.00011811,2]
[323155943,1713736814630,160.97,0.00011859,2]
[323155944,1713736850990,262.4,0.00011852,2]
[323155945,1713737024810,250.0,0.00011711,2]
[323155946,1713737074451,159.68,0.00011836,2]
[323155947,1713737248704,783.08,9.824e-05,2]
[323155948,1713737284426,1109.11,0.0001167,2]
[323155949,1713737300080,1668.49,0.0001167,2]
[323155950,1713737301773,281.6,0.0001167,2]
[323155951,1713737364366,790.08,0.0001167,2]
[323155974,1713737432291,-523.86545643,0.00012085,2]
[323155975,1713737432301,-532.55824777,0.00012086,2]
[323155976,1713737432310,-783.08,0.00012088,2]
[323155977,1713737432320,-150.0,0.00012149,2]
[323155978,1713737432329,-150.0,0.00012149,2]
[323155979,1713737432338,-19436.1677666,0.0001215,2]
[323155980,1713737432347,-516.62191133,0.00012152,2]
[323155981,1713737432357,-967.19043138,0.00012153,2]
[323155982,1713737432366,-244.89202381,0.00012153,2]
[323155983,1713737432375,-262.16181551,0.00012153,2]
[323155984,1713737432385,-1388.59049396,0.00012153,2]
[323155985,1713737432395,-2467.9664,0.00012155,2]
[323155986,1713737432405,-24510.1339,0.00012155,2]
[323155987,1713737432415,-432.87755115,0.00012155,2]
[323155988,1713737432427,-658.25,0.00012155,2]
[323155989,1713737432438,-385.01912969,0.00012155,2]
[323155990,1713737432450,-59020.97527109,0.00012155,2]
[323155991,1713737432465,-91688.47652582,0.00012155,2]
[323155992,1713737432501,-61903.0463406,0.00012155,2]
[323155993,1713737432529,-6299.5175963,0.00012155,2]
[323155994,1713737432541,-29856.06955987,0.00012155,2]
[323155995,1713737432552,-462.3687692,0.00012155,2]
[323155996,1713737432564,-295403.48425587,0.00012155,2]
[323155997,1713737432573,-1000.0,0.00012156,2]
[323155998,1713737432583,-22856.58324721,0.00012156,2]
[323155999,1713737432626,-460.43123519,0.00012156,2]
[323156001,1713737432638,-4321.14263448,0.00012156,2]
[323156002,1713737432649,-521.20433381,0.00012156,2]
[323156003,1713737432670,-300.0,0.00012156,2]
[323156004,1713737432681,-614.7279758,0.00012156,2]
[323156005,1713737432694,-428.101543,0.00012156,2]
[323156025,1713737438531,-6446.8404,0.00012156,2]
[323156026,1713737438611,-24845.11623051,0.00012156,2]
[323156027,1713737438628,-150.99,0.00012213,2]
[323156028,1713737438654,-243.71840949,0.00012213,2]
[323156029,1713737438674,-256.27159051,0.00012213,2]
[323156031,1713737438695,-5034.26705376,0.00012248,2]
[323156034,1713737438712,-325.58773117,0.00012254,2]
[323156037,1713737438730,-156.17473524,0.00012254,2]
[323156040,1713737438748,-155.0,0.00012254,2]
[323156042,1713737438766,-17200.03722261,0.00012255,2]
[323156045,1713737438785,-17061.36885399,0.00012256,2]
[323156117,1713737440411,-2646.60596042,0.00012256,2]
[323156191,1713737440964,-1538.7074705,0.00012256,2]
[323156194,1713737440975,-443.43736833,0.00012256,2]
[323156203,1713737441015,-608.44182969,0.00012256,2]
[323156207,1713737441026,-7691.69763579,0.00012256,2]
[323156210,1713737441037,-17232.60116287,0.00012256,2]
[323156215,1713737441061,-598.49799992,0.00012256,2]
[323156219,1713737441072,-316.61,0.00012256,2]
[323156295,1713737443427,-196862.03171849,0.00012256,2]
[323156296,1713737443437,-100000.0,0.00012256,2]
[323156297,1713737443448,-3158.69872708,0.00012348,2]
[323156298,1713737443458,-625.0,0.0001252,2]
[323156299,1713737443468,-5034.26705372,0.0001266,2]
[323156300,1713737443478,-150.0,0.000127,2]
[323156301,1713737443488,-747.33,0.000127,2]
[323156302,1713737443498,-521.87,0.000127,2]
[323156303,1713737443509,-150.0,0.000127,2]
[323156304,1713737443519,-150.0,0.000127,2]
[323156305,1713737443529,-162.73,0.000127,2]
[323156306,1713737443539,-150.0,0.000127,2]
[323156307,1713737443549,-150.0,0.000127,2]
[323156308,1713737443559,-150.0,0.000127,2]
[323156309,1713737443568,-350.33,0.000127,2]
[323156310,1713737443577,-150.0,0.000127,2]
[323156311,1713737443586,-150.0,0.000127,2]
[323156312,1713737443595,-350.33,0.000127,2]
[323156313,1713737443604,-150.0,0.000127,2]
[323156314,1713737443613,-521.87,0.000127,2]
[323156315,1713737443622,-162.73,0.000127,2]
[323156316,1713737443631,-150.0,0.000127,2]
[323156317,1713737443640,-150.0,0.000127,2]
[323156318,1713737443652,-418.99,0.000127,2]
[323156319,1713737443661,-521.87,0.000127,2]
[323156320,1713737443671,-150.0,0.000127,2]
[323156321,1713737443680,-418.99,0.000127,2]
[323156322,1713737443689,-150.0,0.000127,2]
[323156323,1713737443698,-162.73,0.000127,2]
[323156324,1713737443708,-150.0,0.000127,2]
[323156325,1713737443717,-150.0,0.000127,2]
[323156326,1713737443726,-150.0,0.000127,2]
[323156327,1713737443736,-350.33,0.000127,2]
[323156328,1713737443745,-835.65,0.000127,2]
[323156329,1713737443754,-200.88,0.000127,2]
[323156330,1713737443764,-150.0,0.000127,2]
[323156331,1713737443773,-303.13,0.000127,2]
[323156332,1713737443782,-350.33,0.000127,2]
[323156333,1713737443791,-322.43,0.000127,2]
[323156334,1713737443800,-150.0,0.000127,2]
[323156335,1713737443809,-150.0,0.000127,2]
[323156336,1713737443818,-521.87,0.000127,2]